bitfinex-derivatives/quotes_BNBF0:USTF0_20250708
["timestamp","ask_amount","ask_price","bid_price","bid_amount"]
[1751935064157,1.46386976,661.91,661.49,1.641]
[1751935064353,1.46386976,661.9,661.49,1.641]
[1751935064551,1.46386976,661.89,661.49,1.641]
[1751935064752,1.46386976,661.88,661.49,1.641]
[1751935064955,1.46386976,661.87,661.49,1.641]
[1751935065151,1.46386976,661.86,661.49,1.641]
[1751935065357,1.46386976,661.85,661.49,1.641]
[1751935065655,2.52522821,662.04,661.49,1.641]
[1751935065856,2.52522821,662.03,661.49,1.641]
[1751935066055,2.52522821,662.02,661.49,1.641]
[1751935066255,1.46386976,662.01,661.49,1.641]
[1751935066457,1.46386976,662.0,661.49,1.641]
[1751935066652,1.46386976,661.99,661.49,1.641]
[1751935066858,1.46386976,661.98,661.49,1.641]
[1751935067057,1.06135845,662.07,661.49,1.641]
[1751935067058,1.46386976,661.97,661.49,1.641]
[1751935067259,1.46386976,661.96,661.49,1.641]
[1751935067458,1.46386976,661.95,661.49,1.641]
[1751935067658,1.46386976,661.94,661.49,1.641]
[1751935067853,1.46386976,661.93,661.49,1.641]
[1751935068156,1.46386976,661.92,661.49,1.641]
[1751935068353,1.46386976,661.91,661.49,1.641]
[1751935068559,1.46386976,661.9,661.49,1.641]
[1751935068756,1.46386976,661.89,661.49,1.641]
[1751935068953,1.46386976,661.88,661.49,1.641]
[1751935069154,1.46386976,661.87,661.49,1.641]
[1751935069359,1.46386976,661.86,661.49,1.641]
[1751935069657,1.46386976,661.85,661.49,1.641]
[1751935069859,1.46386976,661.84,661.49,1.641]
[1751935070161,2.52531186,662.01,661.49,1.641]
[1751935070360,2.52531186,662.0,661.49,1.641]
[1751935070556,2.52531186,661.99,661.49,1.641]
[1751935070758,2.52531186,661.98,661.49,1.641]
[1751935070958,2.52531186,661.97,661.49,1.641]
[1751935071158,2.52531186,661.96,661.49,1.641]
[1751935071462,1.46386976,661.95,661.49,1.641]
[1751935071662,1.46386976,661.94,661.49,1.641]
[1751935071860,1.46386976,661.93,661.49,1.641]
[1751935072060,1.46386976,661.92,661.49,1.641]
[1751935072262,1.46386976,661.91,661.49,1.641]
[1751935072563,1.46386976,661.9,661.49,1.641]
[1751935072763,2.52531186,661.99,661.49,1.641]
[1751935072964,2.52531186,661.98,661.49,1.641]
[1751935073162,2.52531186,661.97,661.49,1.641]
[1751935073458,2.52531186,661.96,661.49,1.641]
[1751935073663,1.46386976,661.95,661.49,1.641]
[1751935073864,1.46386976,661.94,661.49,1.641]
[1751935074063,1.46386976,661.93,661.49,1.641]
[1751935074264,1.46386976,661.92,661.49,1.641]
[1751935074565,1.46386976,661.91,661.49,1.641]
[1751935074764,1.46386976,661.9,661.49,1.641]
[1751935074965,2.52531186,661.99,661.49,1.641]
[1751935075166,2.52531186,661.98,661.49,1.641]
[1751935075462,2.52531186,661.97,661.49,1.641]
[1751935075665,1.46386976,661.96,661.49,1.641]
[1751935075866,1.46386976,661.95,661.49,1.641]
[1751935076066,1.46386976,661.94,661.49,1.641]
[1751935076266,1.46386976,661.93,661.49,1.641]
[1751935076469,1.46386976,661.92,661.49,1.641]
[1751935076662,1.46386976,661.91,661.49,1.641]
[1751935076966,1.46386976,661.9,661.49,1.641]
[1751935077261,1.46386976,661.89,661.49,1.641]
[1751935077465,1.46386976,661.88,661.49,1.641]
[1751935077665,1.46386976,661.95,661.49,1.641]
[1751935077861,1.46386976,661.94,661.49,1.641]
[1751935078161,1.46386976,661.93,661.49,1.641]
[1751935078362,1.46386976,661.92,661.49,1.641]
[1751935078562,1.46386976,661.91,661.49,1.641]
[1751935078763,1.46386976,661.9,661.49,1.641]
[1751935078965,1.46386976,661.89,661.49,1.641]
[1751935079163,1.46386976,661.88,661.49,1.641]
[1751935079367,1.46386976,661.87,661.49,1.641]
[1751935079564,2.52531186,661.96,661.49,1.641]
[1751935079765,1.46386976,661.95,661.49,1.641]
[1751935080062,1.46386976,661.94,661.49,1.641]
[1751935080262,1.46386976,661.93,661.49,1.641]
[1751935080468,1.46386976,661.92,661.49,1.641]
[1751935080768,1.46386976,661.91,661.49,1.641]
[1751935080965,1.46386976,661.9,661.49,1.641]
[1751935081169,1.46386976,661.89,661.49,1.641]
[1751935081470,1.46386976,661.88,661.49,1.641]
[1751935081668,1.46386976,661.87,661.49,1.641]
[1751935081969,1.46386976,661.86,661.48,0.2629352]
[1751935082168,2.52531186,661.96,661.48,0.2629352]
[1751935082366,2.52531186,661.95,661.48,0.2629352]
[1751935082570,1.46386976,661.94,661.48,0.2629352]
[1751935082865,1.46386976,661.93,661.48,0.2629352]
[1751935083166,1.46386976,661.92,661.48,0.2629352]
[1751935083368,1.46386976,661.91,661.48,0.2629352]
[1751935083567,1.46386976,661.9,661.48,0.2629352]
[1751935083869,1.46386976,661.89,661.48,0.2629352]
[1751935084165,1.46386976,661.88,661.48,0.2629352]
[1751935084369,1.46386976,661.87,661.49,1.888]
[1751935084568,1.46386976,661.86,661.49,1.888]
[1751935084872,1.46386976,661.85,661.49,1.888]
[1751935085072,2.52531186,661.94,661.49,1.888]
[1751935085371,2.52531186,661.93,661.49,1.888]
[1751935085669,2.52531186,661.92,661.49,1.888]
[1751935085873,1.46386976,661.91,661.49,1.888]
[1751935086168,1.46386976,661.9,661.49,1.888]
[1751935086473,1.46386976,661.89,661.49,1.888]
[1751935086772,1.46386976,661.88,661.49,1.888]
[1751935086970,1.46386976,661.87,661.49,1.888]
[1751935087271,1.46386976,661.86,661.49,1.888]
[1751935087467,2.52531186,661.98,661.49,1.888]
[1751935087673,2.52531186,661.97,661.49,1.888]
[1751935087869,2.52531186,661.96,661.49,1.888]
[1751935088068,2.52531186,661.95,661.49,1.888]
[1751935088267,2.52531186,661.94,661.49,1.888]
[1751935088471,1.6957225,662.06,661.49,1.888]
[1751935088472,2.52531186,661.93,661.49,1.888]
[1751935088674,2.52531186,661.92,661.49,1.888]
[1751935088869,2.52531186,661.91,661.49,1.888]
[1751935089173,1.46386976,661.9,661.49,1.888]
[1751935089472,1.54948548,662.03,661.49,1.888]
[1751935089473,1.46386976,661.89,661.49,1.888]
[1751935089670,1.46386976,661.88,661.49,1.888]
[1751935089969,1.46386976,661.87,661.49,1.888]
[1751935090173,1.46386976,661.86,661.49,1.888]
[1751935090473,1.46386976,661.85,661.49,1.888]
[1751935090672,2.52531186,661.97,661.49,1.888]
[1751935090870,2.52531186,661.96,661.49,1.888]
[1751935091076,2.52531186,661.95,661.49,1.888]
[1751935091272,2.52531186,661.94,661.49,1.888]
[1751935091473,2.52531186,661.93,661.49,1.888]
[1751935091674,2.52531186,661.92,661.49,1.888]
[1751935091871,2.52531186,661.91,661.49,1.888]
[1751935092076,2.52531186,661.9,661.49,1.888]
[1751935092270,2.52531186,661.89,661.49,1.888]
[1751935092475,2.52531186,661.88,661.49,1.888]
[1751935092676,1.46386976,661.87,661.49,1.888]
[1751935092873,1.46386976,661.86,661.49,1.888]
[1751935093073,2.52531186,661.99,661.49,1.888]
[1751935093373,2.52531186,661.98,661.49,1.888]
[1751935093673,2.52531186,661.97,661.49,1.888]
[1751935093877,2.52531186,661.96,661.49,1.888]
[1751935094173,2.52531186,661.95,661.49,1.888]
[1751935094373,2.52531186,661.94,661.49,1.888]
[1751935094674,2.52531186,661.93,661.49,1.888]
[1751935094874,2.52531186,661.92,661.49,1.888]
[1751935095078,2.52531186,661.91,661.49,1.888]
[1751935095280,2.52531186,661.9,661.49,1.888]
[1751935095577,2.52531186,661.89,661.49,1.888]
[1751935095776,2.52531186,661.88,661.49,1.888]
[1751935095980,1.46386976,661.87,661.49,1.888]
[1751935096179,1.46386976,661.86,661.49,1.888]
[1751935096375,2.52531186,661.99,661.49,1.888]
[1751935096581,2.52531186,661.98,661.49,1.888]
[1751935096780,2.52531186,661.97,661.49,1.888]
[1751935096977,2.52531186,661.96,661.49,1.888]
[1751935097177,2.52531186,661.95,661.49,1.888]
[1751935097377,2.52531186,661.94,661.49,1.888]
[1751935097581,2.52531186,661.93,661.49,1.888]
[1751935097783,2.52531186,661.92,661.49,1.888]
[1751935097984,2.52640204,661.91,661.49,1.888]
[1751935098283,2.52640204,661.9,661.49,1.888]
[1751935098482,2.52640204,661.89,661.49,1.888]
[1751935098781,2.52640204,661.88,661.49,1.888]
[1751935098981,1.46386976,661.87,661.49,1.888]
[1751935099180,1.46386976,661.86,661.49,1.888]
[1751935099380,1.46386976,661.85,661.49,1.888]
[1751935099584,2.52640204,661.97,661.49,1.888]
[1751935099783,2.52640204,661.96,661.49,1.888]
[1751935099984,2.52640204,661.95,661.49,1.888]
[1751935100281,2.52640584,661.94,661.49,1.888]
[1751935100486,2.52640584,661.93,661.49,1.888]
[1751935100785,2.52640584,661.92,661.49,1.888]
[1751935100985,2.52640584,661.91,661.49,1.888]
[1751935101180,2.52640584,661.9,661.49,1.888]
[1751935101382,2.52640584,661.89,661.49,1.888]
[1751935101680,2.52640584,661.88,661.49,1.888]
[1751935101884,1.46386976,661.87,661.49,1.888]
[1751935102085,1.46386976,661.86,661.49,1.888]
[1751935102380,1.46386976,661.85,661.49,1.888]
[1751935102585,1.46386976,661.84,661.49,1.888]
[1751935102785,1.46386976,661.83,661.49,1.888]
[1751935102981,2.52640584,661.93,661.49,1.888]
[1751935103282,2.52640584,661.92,661.49,1.888]
[1751935103486,2.52640584,661.91,661.49,1.888]
[1751935103781,2.52640584,661.9,661.49,1.888]
[1751935103982,2.52640584,661.89,661.49,1.888]
[1751935104182,2.52640584,661.88,661.49,1.888]
[1751935104388,1.46386976,661.87,661.49,1.888]
[1751935104682,1.46386976,661.86,661.49,1.888]
[1751935104882,1.46386976,661.85,661.49,1.888]
[1751935105086,1.46386976,661.84,661.49,1.888]
[1751935105284,1.46386976,661.83,661.49,1.888]
[1751935105486,2.52640584,661.95,661.49,1.888]
[1751935105688,2.52640584,661.94,661.49,1.888]
[1751935105887,2.52640584,661.93,661.49,1.888]
[1751935106183,2.52640584,661.92,661.49,1.888]
[1751935106384,2.52640584,661.91,661.49,1.888]
[1751935106687,2.52640584,661.9,661.49,1.888]
[1751935106889,2.52640584,661.89,661.49,1.888]
[1751935107087,2.52640584,661.88,661.49,1.888]
[1751935107283,1.46386976,661.87,661.49,1.888]
[1751935107585,2.52640584,661.86,661.49,1.888]
[1751935107789,2.52640584,661.85,661.49,1.888]
[1751935107989,2.52640584,661.84,661.49,1.888]
[1751935108183,1.46386976,661.83,661.49,1.888]
[1751935108390,1.46386976,661.82,661.49,1.888]
[1751935108589,1.46386976,661.81,661.49,1.888]
[1751935108886,1.46386976,661.8,661.49,1.888]
[1751935109089,1.46386976,661.79,661.49,1.888]
[1751935109289,1.46386976,661.78,661.49,1.888]
[1751935109486,1.46386976,661.77,661.49,1.888]
[1751935109684,1.46386976,661.76,661.49,1.888]
[1751935109886,1.46386976,661.75,661.49,1.888]
[1751935110088,1.46386976,661.74,661.49,1.888]
[1751935110290,1.46386976,661.73,661.49,1.888]
[1751935110488,1.46386976,661.72,661.49,1.888]
[1751935110685,2.52640584,661.94,661.49,1.888]
[1751935110889,1.28555723,661.97,661.49,1.888]
[1751935110890,2.52640584,661.93,661.49,1.888]
[1751935111087,2.52640584,661.92,661.49,1.888]
[1751935111390,2.52640584,661.91,661.49,1.888]
[1751935111590,2.52640584,661.9,661.49,1.888]
[1751935111789,2.52640584,661.89,661.49,1.888]
[1751935111988,2.52640584,661.88,661.49,1.888]
[1751935112187,2.52640584,661.87,661.49,1.888]
[1751935112387,1.46386976,661.86,661.48,0.2629352]
[1751935112589,1.46386976,661.85,661.48,0.2629352]
[1751935112788,1.46386976,661.84,661.48,0.2629352]
[1751935113089,1.46386976,661.83,661.48,0.2629352]
[1751935113394,1.46386976,661.82,661.48,0.2629352]
[1751935113592,1.46386976,661.81,661.48,0.2629352]
[1751935113891,1.46386976,661.8,661.48,0.2629352]
[1751935114092,1.46386976,661.79,661.48,0.2629352]
[1751935114297,1.46386976,661.78,661.48,0.2629352]
[1751935114492,1.46386976,661.77,661.48,0.2629352]
[1751935114689,3.81133403,661.93,661.48,0.2629352]
[1751935114894,2.52640584,661.92,661.48,0.2629352]
[1751935115093,2.52640584,661.91,661.48,0.2629352]
[1751935115291,2.52640584,661.9,661.48,0.2629352]
[1751935115497,2.52640584,661.89,661.49,1.343]
[1751935115791,1.46386976,661.88,661.49,1.343]
[1751935115991,1.46386976,661.87,661.49,1.343]
[1751935116295,1.46386976,661.86,661.49,1.343]
[1751935116494,1.46386976,661.85,661.49,1.343]
[1751935116696,1.46386976,661.84,661.49,1.343]
[1751935116896,1.46386976,661.83,661.49,1.343]
[1751935117093,1.46386976,661.82,661.49,1.343]
[1751935117299,1.46386976,661.81,661.49,1.343]
[1751935117493,2.52640584,661.92,661.49,1.343]
[1751935117699,2.52640584,661.91,661.49,1.343]
[1751935117993,2.52640584,661.9,661.49,1.343]
[1751935118197,2.52640584,661.89,661.49,1.343]
[1751935118497,2.52640584,661.88,661.49,1.343]
[1751935118798,2.52640584,661.87,661.49,1.343]
[1751935118993,2.52640584,661.86,661.49,1.343]
[1751935119195,1.46386976,661.85,661.49,1.343]
[1751935119394,1.46386976,661.84,661.49,1.343]
[1751935119598,1.46386976,661.83,661.49,1.343]
[1751935119894,2.52640584,661.89,661.49,1.343]
[1751935120098,2.52640584,661.88,661.49,1.343]
[1751935120298,2.52640584,661.87,661.49,1.343]
[1751935120595,1.46386976,661.86,661.49,1.343]
[1751935120799,1.46386976,661.85,661.49,1.343]
[1751935121093,1.46386976,661.84,661.49,1.343]
[1751935121294,1.28439902,661.99,661.49,1.343]
[1751935121295,1.46386976,661.83,661.49,1.343]
[1751935121498,1.46386976,661.82,661.49,1.343]
[1751935121793,1.46386976,661.81,661.49,1.343]
[1751935122095,2.52640584,661.9,661.49,1.343]
[1751935122295,2.52640584,661.89,661.49,1.343]
[1751935122495,1.46386976,661.88,661.49,1.343]
[1751935122699,1.46386976,661.87,661.49,1.343]
[1751935122996,1.46386976,661.86,661.49,1.343]
[1751935123295,1.46386976,661.85,661.49,1.343]
[1751935123496,1.46386976,661.84,661.49,1.343]
[1751935123697,1.46386976,661.83,661.49,1.343]
[1751935123896,1.46386976,661.82,661.49,1.343]
[1751935124100,1.46386976,661.81,661.49,1.343]
[1751935124397,2.52495049,661.89,661.49,1.343]
[1751935124700,1.46386976,661.88,661.49,1.343]
[1751935124900,1.46386976,661.87,661.49,1.343]
[1751935125096,1.46386976,661.86,661.49,1.343]
[1751935125299,1.46386976,661.85,661.49,1.343]
[1751935125499,1.46386976,661.84,661.49,1.343]
[1751935125696,1.46386976,661.83,661.49,1.343]
[1751935125901,1.46386976,661.82,661.49,1.343]
[1751935126202,2.52495049,661.9,661.49,1.343]
[1751935126497,0.48802737,661.99,661.49,1.343]
[1751935126498,1.46386976,661.89,661.49,1.343]
[1751935126700,1.46386976,661.88,661.49,1.343]
[1751935126900,1.46386976,661.87,661.49,1.343]
[1751935127100,1.46386976,661.86,661.49,1.343]
[1751935127398,1.46386976,661.85,661.49,1.343]
[1751935127601,1.46386976,661.84,661.49,1.343]
[1751935127797,1.46386976,661.83,661.49,1.343]
[1751935127998,1.46386976,661.82,661.49,1.343]
[1751935128200,1.46386976,661.81,661.49,1.343]
[1751935128496,1.46386976,661.89,661.49,1.343]
[1751935128700,1.46386976,661.88,661.49,1.343]
[1751935128899,1.46386976,661.87,661.49,1.343]
[1751935129101,1.46386976,661.86,661.49,1.343]
[1751935129300,1.46386976,661.85,661.49,1.343]
[1751935129501,1.46386976,661.84,661.49,1.343]
[1751935129699,1.46386976,661.83,661.49,1.343]
[1751935129898,1.46386976,661.82,661.49,1.343]
[1751935130095,1.46386976,661.81,661.49,1.343]
[1751935130298,1.46386976,661.8,661.49,1.343]
[1751935130500,1.46386976,661.79,661.49,1.343]
[1751935130700,1.46386976,661.78,661.49,1.343]
[1751935130996,2.52480301,661.92,661.49,1.343]
[1751935131300,2.52480301,661.91,661.49,1.343]
[1751935131596,2.52480301,661.9,661.49,1.343]
[1751935131798,1.46386976,661.89,661.49,1.343]
[1751935131998,1.46386976,661.88,661.49,1.343]
[1751935132298,1.46386976,661.87,661.49,1.343]
[1751935132603,1.46386976,661.86,661.49,1.343]
[1751935132798,1.46386976,661.85,661.49,1.343]
[1751935132998,1.46386976,661.84,661.49,1.343]
[1751935133200,1.46386976,661.83,661.49,1.343]
[1751935133401,1.46386976,661.82,661.49,1.343]
[1751935133598,1.46386976,661.81,661.49,1.343]
[1751935133799,1.46386976,661.8,661.49,1.343]
[1751935133999,1.46386976,661.89,661.49,1.343]
[1751935134202,1.46386976,661.88,661.49,1.343]
[1751935134404,1.46386976,661.87,661.49,1.343]
[1751935134604,1.46386976,661.86,661.49,1.343]
[1751935134803,1.46386976,661.85,661.49,1.343]
[1751935135004,1.46386976,661.84,661.49,1.343]
[1751935135206,1.46386976,661.83,661.49,1.343]
[1751935135403,1.46386976,661.82,661.49,1.343]
[1751935135605,1.46386976,661.81,661.49,1.343]
[1751935135806,1.46386976,661.8,661.49,1.343]
[1751935136105,1.46386976,661.89,661.49,1.343]
[1751935136307,1.46386976,661.88,661.49,1.343]
[1751935136504,1.46386976,661.87,661.49,1.343]
[1751935136709,1.46386976,661.86,661.49,1.343]
[1751935136908,1.46386976,661.85,661.49,1.343]
[1751935137207,1.46386976,661.84,661.49,1.343]
[1751935137404,1.46386976,661.83,661.49,1.343]
[1751935137607,1.28397651,661.95,661.49,1.343]
[1751935137608,1.46386976,661.82,661.49,1.343]
[1751935137807,1.46386976,661.81,661.49,1.343]
[1751935138006,1.46386976,661.88,661.49,1.343]
[1751935138204,1.46386976,661.87,661.49,1.343]
[1751935138508,1.46386976,661.86,661.49,1.343]
[1751935138704,1.46386976,661.85,661.49,1.343]
[1751935138906,1.46386976,661.84,661.49,1.343]
[1751935139105,1.46386976,661.83,661.49,1.343]
[1751935139307,1.46386976,661.82,661.49,1.343]
[1751935139608,1.46386976,661.81,661.49,1.343]
[1751935139905,2.52480301,661.93,661.49,1.343]
[1751935140207,2.52480301,661.92,661.49,1.343]
[1751935140508,2.52480301,661.91,661.49,1.343]
[1751935140807,2.52480301,661.9,661.49,1.343]
[1751935141005,2.52480301,661.89,661.49,1.343]
[1751935141209,1.46386976,661.88,661.49,1.343]
[1751935141505,1.46386976,661.87,661.49,1.343]
[1751935141805,1.46386976,661.86,661.49,1.343]
[1751935142007,1.46386976,661.85,661.49,1.343]
[1751935142204,1.46386976,661.84,661.49,1.343]
[1751935142407,1.46386976,661.83,661.49,1.343]
[1751935142607,1.46386976,661.82,661.49,1.343]
[1751935142808,1.46386976,661.81,661.49,1.343]
[1751935143009,2.52480301,661.92,661.49,1.343]
[1751935143209,2.52480301,661.91,661.49,1.343]
[1751935143409,2.52480301,661.9,661.49,1.343]
[1751935143609,2.52480301,661.89,661.49,1.343]
[1751935143807,1.46386976,661.88,661.49,1.343]
[1751935144007,1.46386976,661.87,661.49,1.343]
[1751935144312,1.46386976,661.86,661.49,1.343]
[1751935144508,1.46386976,661.85,661.49,1.343]
[1751935144708,1.46386976,661.84,661.49,1.343]
[1751935144910,1.46386976,661.83,661.49,1.343]
[1751935145111,1.46386976,661.82,661.49,1.343]
[1751935145411,1.46386976,661.81,661.49,1.343]
[1751935145607,2.52480301,661.92,661.49,1.343]
[1751935145809,2.52480301,661.91,661.49,1.343]
[1751935146011,2.52480301,661.9,661.49,1.343]
[1751935146208,2.52480301,661.89,661.49,1.343]
[1751935146507,1.46386976,661.88,661.49,1.343]
[1751935146712,1.46386976,661.87,661.49,1.343]
[1751935147008,1.46386976,661.86,661.49,1.343]
[1751935147212,1.46386976,661.85,661.49,1.343]
[1751935147413,1.46386976,661.84,661.49,1.343]
[1751935147708,1.46386976,661.83,661.49,1.343]
[1751935147907,1.46386976,661.82,661.49,1.343]
[1751935148110,1.06093325,661.88,661.49,1.343]
[1751935148111,1.46386976,661.81,661.49,1.343]
[1751935148310,2.52480301,661.93,661.49,1.343]
[1751935148511,2.52480301,661.92,661.49,1.343]
[1751935148714,2.52480301,661.91,661.49,1.343]
[1751935149014,2.52480301,661.9,661.49,1.343]
[1751935149312,2.52480301,661.89,661.49,1.343]
[1751935149511,2.52480301,661.88,661.49,1.343]
[1751935149813,1.46386976,661.87,661.49,1.343]
[1751935150012,1.46386976,661.86,661.49,1.343]
[1751935150216,1.46386976,661.85,661.49,1.343]
[1751935150416,1.46386976,661.84,661.49,1.343]
[1751935150612,1.46386976,661.83,661.49,1.343]
[1751935150813,1.46386976,661.82,661.49,1.343]
[1751935151013,1.46386976,661.81,661.49,1.343]
[1751935151217,1.46386976,661.87,661.49,1.343]
[1751935151414,1.46386976,661.86,661.49,1.343]
[1751935151613,1.46386976,661.85,661.49,1.343]
[1751935151812,1.46386976,661.84,661.49,1.343]
[1751935152013,1.46386976,661.83,661.49,1.343]
[1751935152315,1.46386976,661.82,661.49,1.343]
[1751935152515,1.46386976,661.81,661.49,1.343]
[1751935152715,1.46386976,661.8,661.49,1.343]
[1751935152914,2.52480301,661.93,661.49,1.343]
[1751935153215,2.52480301,661.92,661.49,1.343]
[1751935153416,2.52480301,661.91,661.49,1.343]
[1751935153716,2.52480301,661.9,661.49,1.343]
[1751935153918,2.52480301,661.89,661.49,1.343]
[1751935154116,2.52480301,661.88,661.49,1.343]
[1751935154416,2.52480301,661.87,661.48,0.2629352]
[1751935154618,1.46386976,661.86,661.48,0.2629352]
[1751935154816,1.46386976,661.85,661.48,0.2629352]
[1751935155018,1.46386976,661.84,661.48,0.2629352]
[1751935155317,1.46386976,661.83,661.48,0.2629352]
[1751935155514,1.46386976,661.82,661.48,0.2629352]
[1751935155719,1.46386976,661.81,661.48,0.2629352]
[1751935155917,1.46386976,661.8,661.48,0.2629352]
[1751935156220,1.46386976,661.79,661.48,0.2629352]
[1751935156418,1.46386976,661.78,661.48,0.2629352]
[1751935156619,3.80915814,661.92,661.48,0.2629352]
[1751935156819,3.80915814,661.91,661.48,0.2629352]
[1751935157017,2.52480301,661.9,661.48,0.2629352]
[1751935157324,2.52529329,661.89,661.48,0.2629352]
[1751935157521,2.52529329,661.88,661.48,0.2629352]
[1751935157723,1.46386976,661.87,661.49,1.768]
[1751935157923,1.46386976,661.86,661.49,1.768]
[1751935158123,1.46386976,661.85,661.49,1.768]
[1751935158323,1.46386976,661.84,661.49,1.768]
[1751935158522,1.46386976,661.83,661.49,1.768]
[1751935158719,1.46386976,661.82,661.49,1.768]
[1751935158923,1.46386976,661.81,661.49,1.768]
[1751935159119,1.46386976,661.8,661.49,1.768]
[1751935159318,1.46386976,661.79,661.49,1.768]
[1751935159525,1.46386976,661.78,661.49,1.768]
[1751935159724,1.46386976,661.77,661.49,1.768]
[1751935159922,1.46386976,661.76,661.49,1.768]
[1751935160119,2.52548599,661.93,661.49,1.768]
[1751935160323,2.52548599,661.92,661.49,1.768]
[1751935160622,2.52548599,661.91,661.49,1.768]
[1751935160823,2.52548599,661.9,661.49,1.768]
[1751935161024,2.52548599,661.89,661.49,1.768]
[1751935161220,2.52548599,661.88,661.49,1.768]
[1751935161428,2.52548599,661.87,661.49,1.768]
[1751935161624,2.52548599,661.86,661.49,1.768]
[1751935161920,1.46386976,661.85,661.49,1.768]
[1751935162125,1.46386976,661.84,661.49,1.768]
[1751935162323,1.46386976,661.83,661.49,1.768]
[1751935162521,1.46386976,661.82,661.49,1.768]
[1751935162720,1.46386976,661.81,661.49,1.768]
[1751935162921,1.46386976,661.8,661.49,1.768]
[1751935163125,1.46386976,661.79,661.49,1.768]
[1751935163323,1.46386976,661.78,661.49,1.768]
[1751935163527,1.46386976,661.77,661.49,1.768]
[1751935163725,1.46386976,661.76,661.49,1.768]
[1751935163925,1.46386976,661.75,661.49,1.768]
[1751935164129,1.46386976,661.74,661.49,1.768]
[1751935164330,2.52548599,661.84,661.49,1.768]
[1751935164528,1.46386976,661.83,661.49,1.768]
[1751935164728,1.46386976,661.82,661.49,1.768]
[1751935164927,1.46386976,661.81,661.49,1.768]
[1751935165129,1.46386976,661.8,661.49,1.768]
[1751935165430,1.46386976,661.79,661.49,1.768]
[1751935165733,1.46386976,661.78,661.49,1.768]
[1751935165933,1.46386976,661.77,661.49,1.768]
[1751935166132,1.46386976,661.76,661.49,1.768]
[1751935166330,1.46386976,661.75,661.49,1.768]
[1751935166531,1.46386976,661.74,661.49,1.768]
[1751935166732,1.46386976,661.73,661.49,1.768]
[1751935166931,2.52645959,661.84,661.49,1.768]
[1751935167236,2.52645959,661.83,661.49,1.768]
[1751935167531,2.52645959,661.82,661.49,1.768]
[1751935167832,2.52645959,661.81,661.49,1.768]
[1751935168035,2.52645959,661.8,661.49,1.768]
[1751935168232,1.46386976,661.79,661.49,1.768]
[1751935168432,1.46386976,661.78,661.49,1.768]
[1751935168634,1.46386976,661.77,661.49,1.768]
[1751935168833,1.46386976,661.76,661.49,1.768]
[1751935169034,1.46386976,661.75,661.49,1.768]
[1751935169232,1.46386976,661.74,661.49,1.768]
[1751935169434,1.46386976,661.73,661.49,1.768]
[1751935169636,1.46386976,661.72,661.49,1.768]
[1751935169833,1.06277069,661.83,661.49,1.768]
[1751935170031,2.52988692,661.82,661.49,1.768]
[1751935170334,2.52988692,661.81,661.49,1.768]
[1751935170533,1.46711623,661.8,661.49,1.768]
[1751935170736,1.46711623,661.79,661.49,1.768]
[1751935171036,1.46711623,661.78,661.49,1.768]
[1751935171232,1.46711623,661.77,661.49,1.768]
[1751935171532,1.46711623,661.76,661.49,1.768]
[1751935171735,1.46711623,661.75,661.49,1.768]
[1751935172033,1.46711623,661.74,661.49,1.768]
[1751935172339,1.46711623,661.73,661.49,1.768]
[1751935172537,1.46711623,661.72,661.49,1.768]
[1751935172740,1.06277069,661.85,661.49,1.768]
[1751935172938,2.52988413,661.84,661.49,1.768]
[1751935173133,2.52988413,661.83,661.49,1.768]
[1751935173335,2.52988413,661.82,661.49,1.768]
[1751935173539,1.46711344,661.81,661.49,1.768]
[1751935173740,1.46711344,661.8,661.49,1.768]